Cogmind - Beta 17 @@@ ROGUE MODE // 2026.07.02 @ 00:44:54 Player: OBLIQUE Result: Destroyed by H-88 Terminator with Heavy Machine Gun Performance ------------- Evolutions (8) 4000 Regions Visited (21) 4200 Robots Destroyed (65) 325 Value Destroyed (1619) 1619 Prototype IDs (55) 1100 Alien Tech Used (6) 1200 Bonus (10346) 10346 TOTAL SCORE: 22790 Bonus ------- Follower Combat Kills 246 Aligned with FarCom 300 Met Zhirov 300 Met Warlord at Base 500 MAIN.C Attacked Warlord 500 Found Hidden Lab 3000 Used Core Reset Matrix 3000 Met Warlord at Research 2000 Pursued by Intercept 500 Cogmind --------- Core Integrity 0/1450 Matter 254/300 Energy 99/100 System Corruption 54% Temperature Cool (0) Movement Core (50) Location -2/Research Parts ------- > --- POWER (3) -------- (None) > --- PROPULSION (5) --- Combat Linear Gravjet Combat Linear Gravjet > --- UTILITY (13) ----- Machine Analyzer Enhanced Optical Array Advanced Signal Interpreter Advanced Terrain Scan Processor Advanced Targeting Computer Armor Integrity Analyzer Improved Armor Integrity Analyzer Improved Transmission Jammer Jamming Amplifier > --- WEAPON (3) ------- (None) > --- INVENTORY (5) ---- Light Antimatter Reactor Advanced Shield Generator Potential Cannon Guided Remote Datajack Peak State ------------ > --- POWER ------------ Improved Deuterium Engine Improved Deuterium Engine Light Quantum Reactor > --- PROPULSION ------- Combat Linear Gravjet Combat Linear Gravjet Combat Linear Gravjet Combat Linear Gravjet Combat Linear Gravjet > --- UTILITY ---------- Advanced Power Amplifier Machine Analyzer Advanced Visual Processing Unit Enhanced Optical Array Advanced Signal Interpreter Advanced Terrain Scan Processor Stasis Canceller Improved Transmission Jammer Jamming Amplifier Experimental ECM Suite Heavy Regenerative Plating Deep Network Scanner > --- WEAPON ----------- Tachyon Dispersion Ray Makeshift Hammer > --- INVENTORY -------- Combat Linear Gravjet Improved Transmission Jammer Potential Cannon Guided Remote Datajack [Rating: 156] Favorites ----------- Power Improved Deuterium Engine Engine Improved Deuterium Engine Power Core Backup Power VII Reactor Light Quantum Reactor Propulsion Gravmag System Leg Biometal Leg Wheel Wheel Hover Unit Gravmag System Flight Unit Xenon Bombardment Thruster Utility Advanced Visual Processing Unit Device ECM Suite Storage Small Storage Unit Processor Advanced Visual Processing Unit Hackware Advanced System Shield Protection Heavy Regenerative Plating Weapon AWS/Thermal Energy Gun AWS/Thermal Energy Cannon Potential Cannon Ballistic Gun KE Penetrator Launcher Mini Grenade Launcher Special Weapon Guided Remote Datajack Impact Weapon Power Maul Special Melee Weapon Advanced Datajack Build | -11 -10 -10 -10 -9 -8 -7 -6 -6 -5 -5 -5 -5 -4 -4 -4 -4 -3 -3 -3 -3 -2 ------- Run | Yrd Mat Min Exi Min Mat Fac Fac Ext Fac Upp Upp Zhi Pro Fac Upp War Pro Res Arm Lab Res Slots Evolved 16 | . . . . . 4 2 2 . 2 . . . . 2 . . . 2 . . 2 Power 1 | . . . . . 1 . . . . . . . . . . . . . . . . Propulsion 3 | . . . . . 2 . . . 1 . . . . . . . . . . . . Utility 11 | . . . . . 1 1 2 . 1 . . . . 2 . . . 2 . . 2 Weapon 1 | . . . . . . 1 . . . . . . . . . . . . . . . Parts Attached 119 | 6 12 . 1 . 8 5 4 4 11 . . 2 . 6 . 2 1 3 14 5 35 Power 13 | 1 2 . . . 1 1 1 1 . . . . . . . . . . 2 . 4 Engine 7 | 1 2 . . . 1 1 1 1 . . . . . . . . . . . . . Core 1 | . . . . . . . . . . . . . . . . . . . . . 1 Reactor 5 | . . . . . . . . . . . . . . . . . . . 2 . 3 Propulsion 30 | 2 3 . . . 6 . . 1 2 . . 1 . . . . 1 1 6 . 7 Treads . | . . . . . . . . . . . . . . . . . . . . . . Leg 2 | . . . . . . . . . . . . . . . . . . . . . 2 Wheel 2 | 2 . . . . . . . . . . . . . . . . . . . . . Hover 23 | . 3 . . . 6 . . 1 2 . . . . . . . 1 1 6 . 3 Flight 3 | . . . . . . . . . . . . 1 . . . . . . . . 2 Utility 58 | 1 4 . . . 1 2 3 2 9 . . 1 . 6 . 1 . 2 4 3 19 Device 34 | . 3 . . . . . 1 2 4 . . 1 . 3 . 1 . 1 4 1 13 Storage 1 | 1 . . . . . . . . . . . . . . . . . . . . . Processor 17 | . 1 . . . 1 2 1 . 4 . . . . 2 . . . 1 . . 5 Hackware 4 | . . . . . . . 1 . 1 . . . . 1 . . . . . 1 . Protection 2 | . . . . . . . . . . . . . . . . . . . . 1 1 Artifact . | . . . . . . . . . . . . . . . . . . . . . . Weapon 18 | 2 3 . 1 . . 2 . . . . . . . . . 1 . . 2 2 5 Energy Gun 6 | 2 . . 1 . . . . . . . . . . . . . . . 2 1 . Energy Cannon 1 | . . . . . . . . . . . . . . . . . . . . . 1 Ballistic Gun 3 | . . . . . . . . . . . . . . . . . . . . . 3 Ballistic Cannon . | . . . . . . . . . . . . . . . . . . . . . . Launcher 3 | . 3 . . . . . . . . . . . . . . . . . . . . Special Weapon 1 | . . . . . . . . . . . . . . . . . . . . 1 . Impact Weapon 3 | . . . . . . 2 . . . . . . . . . 1 . . . . . Slashing Weapon . | . . . . . . . . . . . . . . . . . . . . . . Piercing Weapon . | . . . . . . . . . . . . . . . . . . . . . . Special Melee Weapon 1 | . . . . . . . . . . . . . . . . . . . . . 1 Unidentified Prototypes 15 | . . . . . . . . . 2 . . 3 . . . . . . 4 5 1 Parts Lost 36 | . 1 . . . 1 1 . . 1 . . . . 2 . . 2 . 5 3 20 Power 5 | . . . . . . . . . . . . . . . . . . . 1 . 4 Propulsion 14 | . 1 . . . 1 . . . . . . . . 1 . . 2 . 1 . 8 Utility 13 | . . . . . . 1 . . 1 . . . . 1 . . . . 2 3 5 Weapon 4 | . . . . . . . . . . . . . . . . . . . 1 . 3 Highest Loss Streak 14 | . 1 . . . 1 1 . . 1 . . . . 2 . . 2 . 3 1 14 To Critical Strikes 2 | . . . . . . . . . . . . . . . . . . . . . 2 Average Backups 4 | . 3 5 5 5 3 4 5 5 4 5 5 5 5 4 5 5 4 3 4 2 3 Power . | . 1 1 1 1 . . . . . 1 1 . . . . . . . . . . Propulsion . | . 1 2 1 1 . 1 1 1 . 1 1 1 1 1 1 1 . . . 1 . Utility 1 | . . . . . . 1 2 2 2 3 3 3 3 1 2 2 2 1 2 1 . Weapon 1 | . . 2 2 3 3 2 2 2 1 . . . . . 1 1 . . . . 1 Tool/Special . | . . . . . . . . . . . . . . . . . . . . . . Unused Backups 13 | . . . 1 . 2 1 . . 2 . . 1 . 2 . . 1 . 3 . . Power 1 | . . . . . . . . . . . . 1 . . . . . . . . . Propulsion 3 | . . . 1 . . . . . . . . . . 1 . . . . 1 . . Utility 5 | . . . . . . 1 . . 2 . . . . . . . . . 2 . . Weapon 3 | . . . . . 2 . . . . . . . . . . . 1 . . . . Tool/Special 1 | . . . . . . . . . . . . . . 1 . . . . . . . Average Slot Usage (%) 89 | . 93 100 90 85 77 88 76 92 93 94 94 94 94 93 94 94 92 90 95 92 71 Engine 11 | . 14 14 14 14 17 15 13 13 11 11 11 11 11 10 10 10 10 9 7 8 4 Hover 24 | . 17 28 28 28 27 30 26 26 28 29 29 29 29 26 26 26 24 22 22 22 15 Device 17 | . 14 28 28 28 18 14 6 15 18 17 17 17 17 15 21 21 21 21 22 19 7 Processor 16 | . 2 . . . 6 13 13 16 14 17 17 17 17 21 21 21 21 21 23 22 27 Hackware 3 | . . . . . . . 1 6 5 5 5 5 5 9 5 5 5 4 4 2 2 Energy Gun 6 | . 15 . 9 14 9 7 6 6 5 5 5 5 5 5 5 5 5 4 5 4 2 Launcher 1 | . 9 28 9 . . . . . . . . . . . . . . . . . . Impact Weapon 3 | . . . . . . 6 6 6 5 5 5 5 5 5 5 5 5 4 4 4 2 Peak Build Rating 156 | 6 9 9 21 21 38 49 61 66 83 79 79 86 80 97 97 97 95 109 138 144 156 Average Rating 74 | 3 7 9 17 21 25 46 51 62 80 79 79 79 80 90 97 96 94 104 117 130 116 On Entrance 64 | . 6 9 9 21 21 38 48 61 66 79 79 79 80 80 97 97 95 92 109 116 139 Avg Prop Armor Cover (%) 20 | . . . . . . . . . . . . . . . . . . . . . 20 Naked Turns . | . . . . . . . . . . . . . . . . . . . . . . Heaviest Build 72 | 12 13 8 14 14 17 27 29 36 37 35 35 35 35 37 37 37 37 39 51 59 72 Greatest Support 75 | 20 20 12 12 12 36 40 40 40 52 52 52 52 52 52 52 52 52 52 70 70 75 Greatest Overweight (x) 2 | . 2 . 1 1 1 . . . . . . . . . . . . . . . . Average Overweight (x) . | . . . . 1 . . . . . . . . . . . . . . . . . Largest Inventory Capacity 8 | 8 8 5 5 5 5 5 5 5 5 5 5 5 5 5 5 5 5 5 5 5 5 Average Capacity 5 | 6 6 5 5 5 5 5 5 5 5 5 5 5 5 5 5 5 5 5 5 5 5 Most Carried 7 | 1 7 5 5 5 5 5 5 5 5 5 5 5 5 5 5 5 5 4 5 5 5 Average Carried 4 | . 3 5 4 5 3 4 5 5 4 5 5 4 5 4 5 5 4 3 4 3 4 Final Capacity 8 | 8 5 5 5 5 5 5 5 5 5 5 5 5 5 5 5 5 5 5 5 5 5 Final Carried 5 | 1 5 5 5 5 4 5 5 5 5 5 5 5 5 5 5 5 4 3 4 4 5 Class Distribution -------------------- 28% | Infiltrator-Ninja 13% | Mutant 12% | Scientist-Ninja 11% | Hacker-Ninja 9% | Ninja 5% | Skirmisher 4% | Scout 3% | Scientist-Mutant 3% | Commander-Mutant Dominant Class ---------------- Mutant | -10/Materials Mutant | -10/Mines Mutant | -10/Exiles Skirmisher | -9/Mines Scout | -8/Materials Ninja | -7/Factory Mutant | -6/Factory Commander-Mutant | -6/Extension Scientist-Mutant | -5/Factory Scientist-Ninja | -5/Upper Caves Scientist-Ninja | -5/Upper Caves Scientist-Ninja | -5/Zhirov Scientist-Ninja | -4/Proximity Caves Hacker-Ninja | -4/Factory Infiltrator-Ninja | -4/Upper Caves Infiltrator-Ninja | -4/Warlord Infiltrator-Ninja | -3/Proximity Caves Infiltrator-Ninja | -3/Research Infiltrator-Ninja | -3/Armory Infiltrator-Ninja | -3/Lab Hacker-Ninja | -2/Research Resources | -11 -10 -10 -10 -9 -8 -7 -6 -6 -5 -5 -5 -5 -4 -4 -4 -4 -3 -3 -3 -3 -2 ----------- Run | Yrd Mat Min Exi Min Mat Fac Fac Ext Fac Upp Upp Zhi Pro Fac Upp War Pro Res Arm Lab Res Matter Collected 1636 | 221 168 . 76 . 35 90 . 80 57 5 53 . 8 101 30 . 30 30 169 . 483 Remotely . | . . . . . . . . . . . . . . . . . . . . . . Salvage Created 2509 | . 339 . . . 197 171 11 780 57 . . . 8 33 . . . 135 103 . 675 Parts 59 | . 16 . . . 10 1 . 25 3 . . . . . . . . 1 . . 3 Haulers Intercepted 2 | . 1 . . . . . . . . . . . . . . . . . . . 1 Recyclers Shooed 2 | . . . . . . . . 1 . . . . . . . . . . . . 1 Parts Field Recycled . | . . . . . . . . . . . . . . . . . . . . . . Retrieved Matter . | . . . . . . . . . . . . . . . . . . . . . . Parts Self-Destructed 1 | . . . . . . . . . . . . . . . . . 1 . . . . Prevented . | . . . . . . . . . . . . . . . . . . . . . . Parts Restored . | . . . . . . . . . . . . . . . . . . . . . . Kills | -11 -10 -10 -10 -9 -8 -7 -6 -6 -5 -5 -5 -5 -4 -4 -4 -4 -3 -3 -3 -3 -2 ------- Run | Yrd Mat Min Exi Min Mat Fac Fac Ext Fac Upp Upp Zhi Pro Fac Upp War Pro Res Arm Lab Res Combat Hostiles Destroyed 20 | . 7 . . . 2 . . 8 . . . . 1 . . . . . 1 . 1 Melee 1 | . . . . . . . . . . . . . 1 . . . . . . . . Guns 11 | . 4 . . . 2 . . 5 . . . . . . . . . . . . . AOE 2 | . 2 . . . . . . . . . . . . . . . . . . . . Classes Destroyed 14 | . 6 . . . 2 1 . 3 . . . . 1 . . . . . 1 . . Worker 5 | . 1 . . . . . . . . . . . . . . . . 1 . . 3 Builder 9 | . . . . . . . . 5 . . . . . . . . . 2 . . 2 Tunneler 11 | . 1 . . . . 3 1 . 1 . . . . . . . . 2 . . 3 Hauler 2 | . 1 . . . . . . . . . . . . . . . . . . . 1 Recycler 4 | . . . . . . 1 . 1 . . . . . . . . . . . . 2 Drone 1 | . . . . . . . . . . . . . 1 . . . . . . . . Watcher 14 | . 2 . . . 3 1 . 1 1 . . . . 1 . . . 1 1 . 3 Swarmer 3 | . 3 . . . . . . . . . . . . . . . . . . . . Grunt 8 | . 4 . . . . . . 4 . . . . . . . . . . . . . Protector 1 | . . . . . . . . . . . . . . . . . . . 1 . . Sentry 3 | . . . . . 1 . . 2 . . . . . . . . . . . . . Hunter 1 | . . . . . 1 . . . . . . . . . . . . . . . . Programmer 1 | . . . . . . . . 1 . . . . . . . . . . . . . Behemoth 1 | . . . . . . . . 1 . . . . . . . . . . . . . Tracker 1 | . . . . . . . . . . . . . . . . . . . . . 1 Best Kill Streak 5 | . 4 . . . 3 2 1 4 1 . . . 1 1 . . . 2 1 . 5 Combat Bots Only 3 | . 3 . . . 2 . . 3 . . . . 1 . . . . . 1 . 1 Max Kills in Single Turn 2 | . 2 . . . 1 1 1 1 1 . . . 1 1 . . . 1 1 . 2 Gunslinging . | . . . . . . . . . . . . . . . . . . . . . . Exploded 1 | . 1 . . . . . . . . . . . . . . . . . . . . Melee 1 | . . . . . . . . . . . . . 1 . . . . . . . . Uniques/NPCs Destroyed . | . . . . . . . . . . . . . . . . . . . . . . Combat | -11 -10 -10 -10 -9 -8 -7 -6 -6 -5 -5 -5 -5 -4 -4 -4 -4 -3 -3 -3 -3 -2 -------- Run | Yrd Mat Min Exi Min Mat Fac Fac Ext Fac Upp Upp Zhi Pro Fac Upp War Pro Res Arm Lab Res Hostile Shots Fired 410 | . 33 . . . 10 . . 22 . . . . . . . 3 38 1 18 36 249 Missed 106 | . 11 . . . 2 . . 10 . . . . . . . 2 20 . 7 21 33 Hits 304 | . 22 . . . 8 . . 12 . . . . . . . 1 18 1 11 15 216 Melee 1 | . . . . . . . . . . . . . . . . . . . 1 . . Projectile 303 | . 22 . . . 8 . . 12 . . . . . . . 1 18 1 10 15 216 AOE 1 | . . . . . . . . . . . . . . . . . . . . . 1 Critical Strikes 11 | . . . . . 1 . . . . . . . . . . . . . . . 10 Part Disruptions 1 | . . . . . . . . . . . . . . . . . . . . . 1 Damage Taken 6326 | . 248 . . . 91 76 . 194 177 . . . . 153 . 23 312 68 390 399 4195 Core 1847 | . 48 . . . 19 38 . 35 . . . . . 54 . . 58 . 20 105 1470 Absorbed by Shields . | . . . . . . . . . . . . . . . . . . . . . . Regen/Repaired (Parts) 81 | . . . . . . . . . 39 . . . . . . 6 . . . . 36 Core Remaining (%) 91 | 100 . . . 80 96 94 . 95 . . . . 100 . . . 90 . . 75 . Volleys Fired 60 | . 28 . . . . . . . . . . . . . . . . . 2 7 23 Largest 2 | . 2 . . . . . . . . . . . . . . . . . 2 1 2 Hottest 140 | . 80 . . . . . . . . . . . . . . . . . 140 80 80 Shots Fired 176 | . 50 . . . 20 2 . 40 2 1 . . 6 1 . . 18 1 4 7 24 Gun 165 | . 42 . . . 20 2 . 40 2 1 . . 6 1 . . 18 1 4 7 21 Cannon . | . . . . . . . . . . . . . . . . . . . . . . Launcher 8 | . 8 . . . . . . . . . . . . . . . . . . . . Special 3 | . . . . . . . . . . . . . . . . . . . . . 3 Kinetic 2 | . . . . . . . . . . . . . . . . . . . . . 2 Thermal 100 | . . . . . 20 2 . 40 2 1 . . 6 1 . . 18 1 4 5 . Explosive 8 | . 8 . . . . . . . . . . . . . . . . . . . . Electromagnetic 63 | . 42 . . . . . . . . . . . . . . . . . . 2 19 Robot Hit Streak 26 | . 6 . . . 14 6 . 26 3 . . . 2 2 . . 5 6 1 1 3 Robot Miss Streak 3 | . 3 . . . 1 . . 1 . 1 . . 3 . . . 2 . 2 3 2 Penetration Max . | . . . . . . . . . . . . . . . . . . . . . . Secondary Targets . | . . . . . . . . . . . . . . . . . . . . . . Autonomous 91 | . . . . . 20 2 . 40 2 1 . . 6 1 . . 18 1 . . . Shots Hit Robots 170 | . 31 . . . 18 7 1 49 3 . . . 4 2 . . 15 8 5 1 26 Core Hits 46 | . 16 . . . 6 . . 11 1 . . . . 1 . . 4 2 . . 5 Critical Kills 1 | . . . . . . . . . . . . . . . . . . . . . 1 Critical Parts Destroyed 6 | . . . . . . . . 2 . . . . . 1 . . . 1 . . 2 Critical Strikes 7 | . . . . . . . . 2 . . . . . 1 . . . 1 . . 3 Smash 7 | . . . . . . . . 2 . . . . . 1 . . . 1 . . 3 Melee Attacks 157 | . . . . . . 14 13 21 21 5 . . 5 17 . . 8 19 16 2 16 Impact 157 | . . . . . . 14 13 21 21 5 . . 5 17 . . 8 19 16 2 16 Slashing . | . . . . . . . . . . . . . . . . . . . . . . Piercing . | . . . . . . . . . . . . . . . . . . . . . . Sneak Attacks 32 | . . . . . . 4 1 8 1 . . . . . . . . 7 . . 11 Combat Hostiles 1 | . . . . . . . . 1 . . . . . . . . . . . . . Follow-up Attacks . | . . . . . . . . . . . . . . . . . . . . . . Damage Inflicted 7014 | . 842 . . . 517 460 105 2098 173 . . . 136 92 . . 390 737 204 3 1257 Guns 2622 | . 377 . . . 517 56 . 1041 57 . . . 89 31 . . 345 28 22 3 56 Cannons . | . . . . . . . . . . . . . . . . . . . . . . Explosions 465 | . 465 . . . . . . . . . . . . . . . . . . . . Melee 3927 | . . . . . . 404 105 1057 116 . . . 47 61 . . 45 709 182 . 1201 Ramming . | . . . . . . . . . . . . . . . . . . . . . . Kinetic . | . . . . . . . . . . . . . . . . . . . . . . Thermal 2370 | . 184 . . . 517 56 . 1041 57 . . . 89 31 . . 345 28 22 . . Explosive 281 | . 281 . . . . . . . . . . . . . . . . . . . . Electromagnetic 436 | . 377 . . . . . . . . . . . . . . . . . . 3 56 Impact 3927 | . . . . . . 404 105 1057 116 . . . 47 61 . . 45 709 182 . 1201 Slashing . | . . . . . . . . . . . . . . . . . . . . . . Piercing . | . . . . . . . . . . . . . . . . . . . . . . Highest Corruption 54 | . . . . . . . . . 2 2 2 2 2 . . . . . 2 3 54 Average Corruption 6 | . . . . . . . . . 1 2 2 2 2 . . . . . 2 2 43 Corruption Purged . | . . . . . . . . . . . . . . . . . . . . . . Corruption Blocked . | . . . . . . . . . . . . . . . . . . . . . . Effects 37 | . . . . . . . . . 6 2 2 . 2 . . . . . 7 2 16 Message Errors 7 | . . . . . . . . . 1 . 2 . 1 . . . . . . . 3 Matter Fused 5 | . . . . . . . . . . . . . 1 . . . . . 2 . 2 Heat Flow Errors 7 | . . . . . . . . . 2 1 . . . . . . . . 1 1 2 Energy Discharges 4 | . . . . . . . . . 1 . . . . . . . . . 1 . 2 Parts Rejected 1 | . . . . . . . . . . . . . . . . . . . 1 . . Data Loss (minor) 4 | . . . . . . . . . 1 1 . . . . . . . . 1 . 1 Data Loss (major) 3 | . . . . . . . . . 1 . . . . . . . . . 1 1 . Misfires 1 | . . . . . . . . . . . . . . . . . . . . . 1 Misdirections 4 | . . . . . . . . . . . . . . . . . . . . . 4 Weapon Failures 1 | . . . . . . . . . . . . . . . . . . . . . 1 Overload Shots . | . . . . . . . . . . . . . . . . . . . . . . Overflow Damage 2134 | . 2 . . . . 224 85 466 94 . . . 33 61 . . . 384 71 . 714 Projectiles . | . . . . . . . . . . . . . . . . . . . . . . Explosions 2 | . 2 . . . . . . . . . . . . . . . . . . . . Melee 2132 | . . . . . . 224 85 466 94 . . . 33 61 . . . 384 71 . 714 Knockbacks 21 | . . . . . . 5 1 8 . . . . . . . . . 2 2 . 3 Impact 19 | . . . . . . 4 1 7 . . . . . . . . . 2 2 . 3 Kinetic . | . . . . . . . . . . . . . . . . . . . . . . Secondary 2 | . . . . . . 1 . 1 . . . . . . . . . . . . . Self-Inflicted Damage 29 | . 29 . . . . . . . . . . . . . . . . . . . . Shots 1 | . 1 . . . . . . . . . . . . . . . . . . . . Rammed . | . . . . . . . . . . . . . . . . . . . . . . Targets Rammed . | . . . . . . . . . . . . . . . . . . . . . . Kicked . | . . . . . . . . . . . . . . . . . . . . . . Crushed . | . . . . . . . . . . . . . . . . . . . . . . Highest Temperature 256 | . 211 . . . . . . 6 256 220 . . . . . . . . 227 210 107 Average Temperature 58 | . 95 . . . . . . 6 118 116 . . . . . . . . 79 25 42 Received Heat Transfer 270 | . 75 . . . 18 . . 81 . . . . . . . 12 . . 12 . 72 Siege Activations . | . . . . . . . . . . . . . . . . . . . . . . Martial Activations . | . . . . . . . . . . . . . . . . . . . . . . Shielding Activations . | . . . . . . . . . . . . . . . . . . . . . . Robots Disrupted 1 | . . . . . . . . . . . . . . . . . . . . . 1 Combat Hostiles 1 | . . . . . . . . . . . . . . . . . . . . . 1 Robots Corrupted 24 | . 2 . . . . 4 1 6 . . . . . . . . . 2 2 . 7 Combat Hostiles 6 | . 1 . . . . . . 3 . . . . . . . . . . 1 . 1 Parts Fried 46 | . 3 . . . . 7 1 11 . . . . . 1 . . . 4 4 . 15 Impact Corruptions 65 | . . . . . . 7 3 14 1 . . . 1 1 . . . 12 5 . 21 Robots Melted . | . . . . . . . . . . . . . . . . . . . . . . Combat Hostiles . | . . . . . . . . . . . . . . . . . . . . . . Parts Melted 2 | . . . . . 1 . . 1 . . . . . . . . . . . . . Heat Transferred 2975 | . 200 . . . 666 74 . 1295 74 . . . 111 37 . . 444 37 37 . . Parts Sabotaged 4 | . . . . . . . . . . . . . . . . . . . 4 . . Parts Stolen . | . . . . . . . . . . . . . . . . . . . . . . Parts Stripped . | . . . . . . . . . . . . . . . . . . . . . . Power Chain Reactions 3 | . 3 . . . . . . . . . . . . . . . . . . . . Alert | -11 -10 -10 -10 -9 -8 -7 -6 -6 -5 -5 -5 -5 -4 -4 -4 -4 -3 -3 -3 -3 -2 ------- Run | Yrd Mat Min Exi Min Mat Fac Fac Ext Fac Upp Upp Zhi Pro Fac Upp War Pro Res Arm Lab Res Maximum Alert Level 1 | . . . . . 1 . . . . . . . . . . . . . . . . Low Security (%) 98 | 100 100 100 . 100 72 100 100 100 100 . . . . 100 . . . 100 100 . 100 Level 1 1 | . . . . . 27 . . . . . . . . . . . . . . . . Level 2 . | . . . . . . . . . . . . . . . . . . . . . . Level 3 . | . . . . . . . . . . . . . . . . . . . . . . Level 4 . | . . . . . . . . . . . . . . . . . . . . . . Level 5 . | . . . . . . . . . . . . . . . . . . . . . . High Security . | . . . . . . . . . . . . . . . . . . . . . . Max Security . | . . . . . . . . . . . . . . . . . . . . . . Peak Influence 231 | . 147 44 . . 231 77 16 174 81 . . . . 37 . . . 48 35 . 117 Initial 81 | . . 44 . . . 77 1 . 81 . . . . . . . . . . . . Average 29 | . 93 29 . . 113 19 1 62 16 . . . . 5 . . . 13 5 . 16 Influence Increases 1936 | . 337 . . . 290 78 35 372 125 . . . 5 114 . . . 109 182 . 289 Destroy 0b10 Robot/C 440 | . 140 . . . 40 . . 200 . . . . . . . . . . . . 60 Destroy 0b10 Robot/NC 235 | . 25 . . . 15 25 5 35 10 . . . 5 5 . . . 30 10 . 70 Destroy Leader 134 | . 36 . . . 26 2 . 22 2 . . . . 2 . . . 2 4 . 38 Allied During Kill 95 | . . . . . . . . 79 . . . . . . . . . . . . 16 Successful Hack 293 | . 5 . . . 8 43 4 14 62 . . . . 32 . . . 38 75 . 12 Disable Machine 165 | . 45 . . . . . 15 15 15 . . . . 15 . . . . 45 . 15 Anti-Garrison Action 200 | . . . . . 200 . . . . . . . . . . . . . . . . Destroy Structure 224 | . 86 . . . 1 8 11 7 36 . . . . 30 . . . 24 18 . 3 Partial Spotted 45 | . . . . . . . . . . . . . . 30 . . . 15 . . . Lose Combat Pursuer 105 | . . . . . . . . . . . . . . . . . . . 30 . 75 Influence Decreases 1936 | . 222 101 14 . 120 244 39 206 280 11 . . 5 93 9 12 . 109 153 29 289 Entered New Map 321 | . . 71 14 . . 93 3 . 85 5 . . . . 9 12 . . . 29 . Time Decay 1375 | . 212 30 . . 120 141 36 166 195 6 . . 5 73 . . . 109 133 . 149 Lost Part 80 | . 10 . . . . 10 . . . . . . . 20 . . . . 20 . 20 Lost Ally 160 | . . . . . . . . 40 . . . . . . . . . . . . 120 Squads Dispatched 20 | . 1 . . . 2 1 . 2 1 . . . . 1 . . . 2 6 . 4 Investigation 4 | . . . . . 2 . . 1 . . . . . . . . . . . . 1 Extermination 6 | . . . . . . 1 . . 1 . . . . 1 . . . 1 2 . . Reinforcement 8 | . 1 . . . . . . 1 . . . . . . . . . 1 4 . 1 Assault . | . . . . . . . . . . . . . . . . . . . . . . Garrison . | . . . . . . . . . . . . . . . . . . . . . . Intercept 2 | . . . . . . . . . . . . . . . . . . . . . 2 Searches Triggered . | . . . . . . . . . . . . . . . . . . . . . . Construction Impeded 1 | . . . . . . . . 1 . . . . . . . . . . . . . Haulers Reinforced 1 | . . . . . . . . . . . . . . . . . . . . . 1 Active Scanning Responses . | . . . . . . . . . . . . . . . . . . . . . . Cargo Convoy Interrupts . | . . . . . . . . . . . . . . . . . . . . . . Stealth | -11 -10 -10 -10 -9 -8 -7 -6 -6 -5 -5 -5 -5 -4 -4 -4 -4 -3 -3 -3 -3 -2 --------- Run | Yrd Mat Min Exi Min Mat Fac Fac Ext Fac Upp Upp Zhi Pro Fac Upp War Pro Res Arm Lab Res Distress Signals 12 | . . . . . 1 . . 1 1 . . . . 1 . . . . 2 . 6 Communications Jammed 17 | . . . . . . . . . . . . . 1 3 . . . . 12 . 1 Distress Signals 15 | . . . . . . . . . . . . . . 2 . . . . 12 . 1 Times Spotted 107 | . 14 . . . 7 1 . 10 2 1 . . 1 5 . 5 6 1 25 1 28 Peak Tracking Total 11 | . 3 . . . 3 1 . 3 2 2 . . 1 2 . 9 2 1 8 1 11 Tactical Retreats 14 | . 1 . . . 1 . . . 1 2 . . . 2 . . 3 . 1 . 3 ECM-based Alert Blocks 14 | . 2 . . . 1 . . . 1 2 . . . 2 . . 5 . . . 1 Traps | -11 -10 -10 -10 -9 -8 -7 -6 -6 -5 -5 -5 -5 -4 -4 -4 -4 -3 -3 -3 -3 -2 ------- Run | Yrd Mat Min Exi Min Mat Fac Fac Ext Fac Upp Upp Zhi Pro Fac Upp War Pro Res Arm Lab Res Traps Triggered 9 | . . . . . . 1 . 1 3 . . . . 2 . . . 1 1 . . Indirectly . | . . . . . . . . . . . . . . . . . . . . . . Trap Hack Attempts . | . . . . . . . . . . . . . . . . . . . . . . Triggered . | . . . . . . . . . . . . . . . . . . . . . . Disarmed . | . . . . . . . . . . . . . . . . . . . . . . Reprogrammed . | . . . . . . . . . . . . . . . . . . . . . . Reused . | . . . . . . . . . . . . . . . . . . . . . . Traps Extracted . | . . . . . . . . . . . . . . . . . . . . . . Installed 1 | . . . . . . . . . . . . . 1 . . . . . . . . Triggered . | . . . . . . . . . . . . . . . . . . . . . . Machines | -11 -10 -10 -10 -9 -8 -7 -6 -6 -5 -5 -5 -5 -4 -4 -4 -4 -3 -3 -3 -3 -2 ---------- Run | Yrd Mat Min Exi Min Mat Fac Fac Ext Fac Upp Upp Zhi Pro Fac Upp War Pro Res Arm Lab Res Machines Disabled 13 | . 3 . . . . . 1 1 1 . . . . 1 . . 1 . 3 1 1 Max in Single Turn 1 | . 1 . . . . . 1 . 1 . . . . 1 . . 1 . 1 1 1 Garrison Access 4 | . . . . . 1 . . . . . . . . 1 . . . 1 . . 1 Machines Repaired . | . . . . . . . . . . . . . . . . . . . . . . Machines Dismantled . | . . . . . . . . . . . . . . . . . . . . . . Machines Sabotaged . | . . . . . . . . . . . . . . . . . . . . . . Overloaded Fab Kills . | . . . . . . . . . . . . . . . . . . . . . . Hacking | -11 -10 -10 -10 -9 -8 -7 -6 -6 -5 -5 -5 -5 -4 -4 -4 -4 -3 -3 -3 -3 -2 --------- Run | Yrd Mat Min Exi Min Mat Fac Fac Ext Fac Upp Upp Zhi Pro Fac Upp War Pro Res Arm Lab Res Machines Accessed 79 | . 5 . 1 . 7 7 5 3 15 1 1 4 1 4 . 10 1 4 6 2 2 Terminals 39 | . 5 . . . 5 4 2 3 9 . . . 1 2 . . . 2 6 . . Fabricators 6 | . . . . . . 2 . . 3 . . . . 1 . . . . . . . Repair Stations 1 | . . . . . . . . . 1 . . . . . . . . . . . . Recycling Units . | . . . . . . . . . . . . . . . . . . . . . . Scanalyzers 7 | . . . . . 1 1 2 . 1 . . . . . . . . 1 . . 1 Garrison Access 6 | . . . . . 1 . 1 . 1 . . . . 1 . . . 1 . . 1 Total Hacks 230 | . 12 . 1 . 27 15 10 16 47 1 1 17 1 17 . 11 1 14 12 20 7 Successful 125 | . 6 . 1 . 13 8 4 4 19 1 1 17 1 5 . 11 1 5 6 20 2 Failed 103 | . 6 . . . 13 7 5 12 28 . . . . 12 . . . 9 6 . 5 Catastrophic 19 | . 2 . . . . 1 1 2 7 . . . . 2 . . . 2 2 . . Database Lockouts 2 | . . . . . 1 . 1 . . . . . . . . . . . . . . Manual 50 | . 7 . 1 . 10 5 . . 11 . . . . 8 . . . 4 3 1 . Terminals 124 | . 12 . . . 19 9 4 16 32 . . . 1 13 . . . 6 12 . . Fabricators 13 | . . . . . . 4 . . 6 . . . . 3 . . . . . . . Repair Stations 4 | . . . . . . . . . 4 . . . . . . . . . . . . Recycling Units . | . . . . . . . . . . . . . . . . . . . . . . Scanalyzers 25 | . . . . . 6 2 4 . 4 . . . . . . . . 6 . . 3 Garrison Access 12 | . . . . . 2 . 2 . 1 . . . . 1 . . . 2 . . 4 Terminal Hacks 92 | . 4 . 1 . 6 4 2 4 9 1 1 17 1 4 . 11 1 1 5 20 . Record 40 | . . . . . . . . . 3 . . 5 1 1 . 9 1 . . 20 . Part Schematic 4 | . . . . . . . . . . . . 4 . . . . . . . . . Robot Analysis 4 | . . . . . . . . . . . . 4 . . . . . . . . . Prototype ID Bank 6 | . 1 . . . 1 . . . . . . 4 . . . . . . . . . Open Door 8 | . . . . . . . 1 1 . 1 1 . . . . 2 . . 2 . . Level Access Points 1 | . . . . . . . . . . . . . . 1 . . . . . . . Emergency Access Points 5 | . . . . . 1 . . . 2 . . . . 1 . . . . 1 . . Terminal Index 4 | . 1 . . . . 1 1 1 . . . . . . . . . . . . . Locate Traps 5 | . 1 . . . 1 1 . . 1 . . . . 1 . . . . . . . Dispatch Records 1 | . . . . . . . . . 1 . . . . . . . . . . . . Transport Status 1 | . . . . . . 1 . . . . . . . . . . . . . . . Recall Investigation 1 | . . . . . . . . 1 . . . . . . . . . . . . . Zone Layout 11 | . 1 . . . 3 1 . 1 2 . . . . . . . . 1 2 . . Proto ID Catalog 1 | . . . 1 . . . . . . . . . . . . . . . . . . Fabricator Hacks 1 | . . . . . . 1 . . . . . . . . . . . . . . . Network Status 1 | . . . . . . 1 . . . . . . . . . . . . . . . Repair Station Hacks 2 | . . . . . . . . . 2 . . . . . . . . . . . . Scan Component 1 | . . . . . . . . . 1 . . . . . . . . . . . . Repair 1 | . . . . . . . . . 1 . . . . . . . . . . . . Recycling Unit Hacks . | . . . . . . . . . . . . . . . . . . . . . . Scanalyzer 16 | . . . . . 5 1 2 . 4 . . . . . . . . 2 . . 2 Insert Component 4 | . . . . . 1 . . . 1 . . . . . . . . 2 . . . Analyze 4 | . . . . . 3 . . . 1 . . . . . . . . . . . . Retrieve Study 8 | . . . . . 1 1 2 . 2 . . . . . . . . . . . 2 Garrison Access Hacks 2 | . . . . . . . . . . . . . . 1 . . . 1 . . . Seal Access 2 | . . . . . . . . . . . . . . 1 . . . 1 . . . Unauthorized Hacks 12 | . 2 . . . 2 2 . . 4 . . . . . . . . 1 1 . . Terminals 7 | . 2 . . . 1 1 . . 1 . . . . . . . . 1 1 . . Botnet 6 | . 1 . . . 1 1 . . 1 . . . . . . . . 1 1 . . Operators 1 | . 1 . . . . . . . . . . . . . . . . . . . . Fabricators 4 | . . . . . . 1 . . 3 . . . . . . . . . . . . Report 1 | . . . . . . . . . 1 . . . . . . . . . . . . Liberate 1 | . . . . . . . . . 1 . . . . . . . . . . . . Fabnet 2 | . . . . . . 1 . . 1 . . . . . . . . . . . . Repair Stations . | . . . . . . . . . . . . . . . . . . . . . . Recycling Units . | . . . . . . . . . . . . . . . . . . . . . . Scanalyzers . | . . . . . . . . . . . . . . . . . . . . . . Garrison Access 1 | . . . . . 1 . . . . . . . . . . . . . . . . Jam 1 | . . . . . 1 . . . . . . . . . . . . . . . . Data Cores Recovered . | . . . . . . . . . . . . . . . . . . . . . . Used . | . . . . . . . . . . . . . . . . . . . . . . Hacking Detections 53 | . 5 . . . 7 7 4 3 15 . . . . 3 . . . 3 4 . 2 Full Trace Events 3 | . . . . . 1 . . 1 . . . . . . . . . . . . 1 Feedback Events . | . . . . . . . . . . . . . . . . . . . . . . Feedback Blocked . | . . . . . . . . . . . . . . . . . . . . . . Robot Schematics Acquired . | . . . . . . . . . . . . . . . . . . . . . . Robots Built . | . . . . . . . . . . . . . . . . . . . . . . Authchips . | . . . . . . . . . . . . . . . . . . . . . . Time . | . . . . . . . . . . . . . . . . . . . . . . Total Robot Build Rating . | . . . . . . . . . . . . . . . . . . . . . . Part Schematics Acquired 5 | . . . . . . . . . 1 . . 4 . . . . . . . . . Parts Built . | . . . . . . . . . . . . . . . . . . . . . . Authchips . | . . . . . . . . . . . . . . . . . . . . . . Time . | . . . . . . . . . . . . . . . . . . . . . . Total Part Build Rating . | . . . . . . . . . . . . . . . . . . . . . . Part Studies Acquired 8 | . . . . . 1 1 2 . 2 . . . . . . . . . . . 2 Parts Repaired 1 | . . . . . . . . . 1 . . . . . . . . . . . . Time 22 | . . . . . . . . . 22 . . . . . . . . . . . . Parts Recycled . | . . . . . . . . . . . . . . . . . . . . . . Recycled Matter . | . . . . . . . . . . . . . . . . . . . . . . Retrieved Matter . | . . . . . . . . . . . . . . . . . . . . . . Retrieved Components . | . . . . . . . . . . . . . . . . . . . . . . Parts Scanalyzed 2 | . . . . . 1 . . . 1 . . . . . . . . . . . . Part Schematics Acquired 1 | . . . . . . . . . 1 . . . . . . . . . . . . Parts Damaged . | . . . . . . . . . . . . . . . . . . . . . . Bothacking | -11 -10 -10 -10 -9 -8 -7 -6 -6 -5 -5 -5 -5 -4 -4 -4 -4 -3 -3 -3 -3 -2 ------------ Run | Yrd Mat Min Exi Min Mat Fac Fac Ext Fac Upp Upp Zhi Pro Fac Upp War Pro Res Arm Lab Res Used RIF Installer . | . . . . . . . . . . . . . . . . . . . . . . Robots Hacked 3 | . . . . . . . . . . . . . . . . 1 . . 1 . 1 Non-combat . | . . . . . . . . . . . . . . . . . . . . . . Combat 3 | . . . . . . . . . . . . . . . . 1 . . 1 . 1 Robot Hacks Applied 1 | . . . . . . . . . . . . . . . . . . . . . 1 parse_system 1 | . . . . . . . . . . . . . . . . . . . . . 1 Relay Couplers Released 3 | . . . . . . . . . . . . . . . . . . . . . 3 Machine Destruction 3 | . . . . . . . . . . . . . . . . . . . . . 3 Fabnet Peak Effective % 3 | . . . . . . . 3 3 1 1 1 1 3 3 3 3 1 1 1 1 . Autooverrided 2 | . . . . . . . . . . . . . . . . 1 . . 1 . . Robots Rewired 6 | . . . . . . . . 6 . . . . . . . . . . . . . Allies Hacked . | . . . . . . . . . . . . . . . . . . . . . . Hacks Repelled . | . . . . . . . . . . . . . . . . . . . . . . Allies | -11 -10 -10 -10 -9 -8 -7 -6 -6 -5 -5 -5 -5 -4 -4 -4 -4 -3 -3 -3 -3 -2 -------- Run | Yrd Mat Min Exi Min Mat Fac Fac Ext Fac Upp Upp Zhi Pro Fac Upp War Pro Res Arm Lab Res Total Allies 22 | . . . . . . . . 7 . . . . . . . 1 . . 1 . 13 Largest Group 7 | . . . . . . . . 6 5 . . . . . . . . . 1 . 7 Highest-Rated Group 322 | . . . . . . . . 322 269 . . . . . . . . . 42 . 100 Highest-Rated Ally 159 | . . . . . . . . 159 137 . . . . . . . . . 42 . 15 Total Orders 3 | . . . . . . . . . 3 . . . . . . . . . . . . STAY 2 | . . . . . . . . . 2 . . . . . . . . . . . . FOLLOW 1 | . . . . . . . . . 1 . . . . . . . . . . . . Ally Attacks 81 | . . . . . . . . 36 . . . . . . . 1 . . 5 . 39 Total Damage 1196 | . . . . . . . . 617 . . . . . . . 45 . . 98 . 436 Kills 4 | . . . . . . . . 2 . . . . . . . . . . . . 2 Allies Corrupted . | . . . . . . . . . . . . . . . . . . . . . . Allies Melted 1 | . . . . . . . . . . . . . . . . . . . . . 1 Intel | -11 -10 -10 -10 -9 -8 -7 -6 -6 -5 -5 -5 -5 -4 -4 -4 -4 -3 -3 -3 -3 -2 ------- Run | Yrd Mat Min Exi Min Mat Fac Fac Ext Fac Upp Upp Zhi Pro Fac Upp War Pro Res Arm Lab Res Active Infowar (turns) 6901 | . 184 76 205 377 324 489 229 423 652 148 140 73 323 411 12 264 702 291 551 366 661 Optics 5957 | . . . . . 222 489 229 423 652 148 140 73 323 411 12 264 702 291 551 366 661 Sensors 4771 | . 184 76 205 377 324 456 27 223 20 148 140 73 323 411 12 264 702 291 515 . . Terrain 1011 | . . . . . . . . . . . . . . . . . . 200 551 260 . Machine Analysis 4152 | . . . . . . . . . 210 148 140 73 323 411 12 264 702 291 551 366 661 Triangulation 333 | . . . . . . . . . . . . . . . . . . . . 333 . Cloaking 1959 | . . . . . . . . . 13 . . . . 60 12 263 702 291 521 97 . Jamming 4111 | . . . . . . . . . 644 148 140 73 323 384 12 264 702 291 521 119 490 ECM 4870 | . 98 76 205 160 266 489 229 423 652 148 140 68 323 411 12 264 702 99 2 9 94 Robot Analysis Total 4 | . . . . . . . . . . . . 4 . . . . . . . . . Derelict Logs Recovered 7 | . . . . 1 . . . . . 1 2 . 3 . . . . . . . . Drone Launches . | . . . . . . . . . . . . . . . . . . . . . . Drone Recoveries . | . . . . . . . . . . . . . . . . . . . . . . Exploration | -11 -10 -10 -10 -9 -8 -7 -6 -6 -5 -5 -5 -5 -4 -4 -4 -4 -3 -3 -3 -3 -2 ------------- Run | Yrd Mat Min Exi Min Mat Fac Fac Ext Fac Upp Upp Zhi Pro Fac Upp War Pro Res Arm Lab Res Turns Passed 7229 | 48 464 76 205 377 324 489 229 423 652 148 140 73 323 411 12 264 702 291 551 366 661 Spaces Moved 11262 | 48 474 136 231 325 472 873 378 567 1184 317 331 143 528 751 24 621 906 543 798 654 958 Core 188 | 1 . . . . . . . . . . . . . . . . . . . . 187 Treads . | . . . . . . . . . . . . . . . . . . . . . . Legs . | . . . . . . . . . . . . . . . . . . . . . . Wheels 169 | 47 122 . . . . . . . . . . . . . . . . . . . . Hover 10905 | . 352 136 231 325 472 873 378 567 1184 317 331 143 528 751 24 621 906 543 798 654 771 Flight . | . . . . . . . . . . . . . . . . . . . . . . Fastest Speed 38 | 50 56 56 56 116 48 48 48 48 42 42 42 42 42 42 42 42 40 38 38 48 46 Average Speed 48 | 79 69 56 86 116 53 48 48 48 42 42 42 42 42 42 42 42 41 38 38 48 51 Slowest Speed 180 | 80 180 56 116 116 116 48 48 48 44 42 42 45 42 42 42 42 45 40 57 48 77 Overloaded Moves . | . . . . . . . . . . . . . . . . . . . . . . Propulsion Burnouts . | . . . . . . . . . . . . . . . . . . . . . . Robots Hopped . | . . . . . . . . . . . . . . . . . . . . . . Potential Cave-ins 2 | . . . . . . . . . . . . . . . . . . . . . 2 Cave-ins Triggered 1 | . . . . . . . . . . . . . . . . . . . . . 1 Teleports 2 | . . . . . . . . . . . . . . . . . . . 1 1 . Exploration Rate (%) 47 | 3 74 30 61 60 47 27 9 49 35 60 55 62 66 28 12 91 72 20 52 96 43 Regions Visited 21 Branch Regions 13 Pre-discovered Areas 5 | . . . . . . . . . . . . 3 2 . . . . . . . . Known Exits Taken 13 | . . . . . . . 1 . 1 1 1 1 1 1 1 1 1 1 1 1 . Unknown Exits Taken 8 | 1 1 1 1 1 1 1 . 1 . . . . . . . . . . . . . Scrap Searched 7 | . . . . 2 . . . . . . 1 . . . 1 . 3 . . . . Spaces Dug 94 | . . . . . . 8 11 6 18 5 . . 4 15 . . 5 12 9 . 1 Terrain Destroyed 198 | . 95 . . . 1 8 11 7 18 5 . . 7 15 . . 8 12 9 . 2 Melee 94 | . . . . . . 8 11 6 18 5 . . 4 15 . . 5 12 9 . 1 Projectile 9 | . . . . . 1 . . 1 . . . . 3 . . . 3 . . . 1 AOE 95 | . 95 . . . . . . . . . . . . . . . . . . . . Terrain Rammed . | . . . . . . . . . . . . . . . . . . . . . . Walls Destroyed . | . . . . . . . . . . . . . . . . . . . . . . Machines Disabled . | . . . . . . . . . . . . . . . . . . . . . . Actions | -11 -10 -10 -10 -9 -8 -7 -6 -6 -5 -5 -5 -5 -4 -4 -4 -4 -3 -3 -3 -3 -2 --------- Run | Yrd Mat Min Exi Min Mat Fac Fac Ext Fac Upp Upp Zhi Pro Fac Upp War Pro Res Arm Lab Res Total 12654 | 54 560 135 236 325 545 918 398 675 1293 321 331 155 618 812 25 624 1223 604 1018 695 1089 Wait 852 | . 25 . . 1 60 18 3 34 56 . 1 . 85 29 2 . 307 40 157 16 18 Move 11241 | 47 473 135 230 324 471 872 377 566 1183 316 330 142 527 750 23 620 905 542 797 653 958 Hop . | . . . . . . . . . . . . . . . . . . . . . . Pick Up 37 | 1 7 . 1 . 2 4 . . 6 . . 1 . 5 . . 1 . 5 2 2 Fast Attach 100 | 6 8 . 1 . 3 2 3 3 8 . . 6 . 2 . 1 . 2 16 7 32 Attach 26 | . 2 . . . 2 1 . . 2 . . . . 3 . . 1 1 2 4 8 Detach 30 | . 7 . 1 . . 1 . 1 2 . . . . 1 . . . . 2 3 12 Swap 20 | . 2 . . . 3 2 1 1 2 . . . . 2 . 1 . . 6 . . Drop 79 | . 8 . 3 . 4 4 1 3 8 . . 6 . 3 . 2 1 . 15 1 20 Fire 60 | . 28 . . . . . . . . . . . . . . . . . 2 7 23 Melee 157 | . . . . . . 14 13 21 21 5 . . 5 17 . . 8 19 16 2 16 Ram . | . . . . . . . . . . . . . . . . . . . . . . Kick . | . . . . . . . . . . . . . . . . . . . . . . Crush . | . . . . . . . . . . . . . . . . . . . . . . Escape Stasis 18 | . . . . . . . . 13 5 . . . . . . . . . . . . Rewire 33 | . . . . . . . . 33 . . . . . . . . . . . . . Trap 1 | . . . . . . . . . . . . . 1 . . . . . . . . Miscellaneous . | . . . . . . . . . . . . . . . . . . . . . . Route ------- -11/Scrapyard -10/Materials (discovered 4 exits: [*Mat x2] / [*Min x2]) -10/Mines -10/Exiles -9/Mines -8/Materials -7/Factory -6/Factory -6/Extension -5/Factory (discovered 3 exits: *Fac x2 / *Upp) -5/Upper Caves -5/Upper Caves (discovered 2 exits: Fac / *Zhi) -5/Zhirov -4/Proximity Caves -4/Factory (discovered 5 exits: Res x4 / *Upp) -4/Upper Caves -4/Warlord -3/Proximity Caves -3/Research (discovered 2 exits: *Arm / [Tes]) -3/Armory (discovered 3 exits: *Res x2 / *Lab) -3/Lab -2/Research (discovered 1 exit: *Qua) History --------- Turn | Location | Event 10 | -11/Scrapyard | Discovered new exit (range 16) 49 | -11/Scrapyard | Entered Materials 129 | -10/Materials | Discovered new exit (range 5) 255 | -10/Materials | Discovered new exit (range 8) 265 | -10/Materials | Discovered new exit (range 15) 325 | -10/Materials | Build established: Mutant 431 | -10/Materials | Discovered new exit (range 9) 513 | -10/Materials | Entered Mines 521 | -10/Mines | Met a Derelict bent on vengeance 586 | -10/Mines | Deemed a non-threat by the Exiles lab entrance 587 | -10/Mines | Discovered new exit (range 5) 589 | -10/Mines | Entered Exiles 603 | -10/Exiles | Met 8R-AWN 612 | -10/Exiles | Met EX-HEX 628 | -10/Exiles | Met EX-BIN 635 | -10/Exiles | Aligned with FarCom system 636 | -10/Exiles | Given EX-Vault access code 649 | -10/Exiles | Opened EX-Vault 654 | -10/Exiles | Found AWS/Thermal 682 | -10/Exiles | Warned to stay clear of 0b10 Research branches 717 | -10/Exiles | Met EX-DEC 779 | -10/Exiles | Discovered new exit (range 14) 794 | -10/Exiles | Left Exiles lab with AWS/Thermal 794 | -10/Exiles | Entered Mines 871 | -9/Mines | Learned Materials security intel 1094 | -9/Mines | Build established: Skirmisher 1159 | -9/Mines | Received a Rocket Launcher from a helpful Derelict 1164 | -9/Mines | Discovered new exit (range 6) 1171 | -9/Mines | Entered Materials 1171 | -8/Materials | Evolved 4 slots: Power x1, Propulsion x2, Utility x1 1375 | -8/Materials | Central database locked down 1422 | -8/Materials | Discovered new exit (range 18) 1495 | -8/Materials | Entered Factory 1495 | -7/Factory | Evolved 2 slots: Utility x1, Weapon x1 1832 | -7/Factory | Build established: Ninja 1927 | -7/Factory | Discovered new exit (range 13) 1984 | -7/Factory | Entered another Factory area 1984 | -6/Factory | Evolved 2 slots: Utility x2 2074 | -6/Factory | Discovered new exit (range 6) 2168 | -6/Factory | Central database locked down 2213 | -6/Factory | Identified exit to Extension 2213 | -6/Factory | Entered Extension 2524 | -6/Extension | Spotted B-75 Beast 2532 | -6/Extension | Rescued A7 2565 | -6/Extension | Spotted B-75 Beast 2572 | -6/Extension | Door terminal overloaded 2572 | -6/Extension | Discovered new exit (range 17) 2575 | -6/Extension | Allies destroyed B-75 Beast 2581 | -6/Extension | Destroyed B-75 Beast 2636 | -6/Extension | Entered Factory 2636 | -5/Factory | Accompanied by 5 allies (A7) 2636 | -5/Factory | Evolved 2 slots: Propulsion x1, Utility x1 2852 | -5/Factory | Discovered new exit (range 4) 3044 | -5/Factory | Discovered new exit (range 13) 3070 | -5/Factory | Repaired Gravmag System+ 3195 | -5/Factory | Spotted B-75 Beast 3222 | -5/Factory | Discovered new exit (range 6) 3288 | -5/Factory | Identified exit to Upper Caves 3288 | -5/Factory | Entered Upper Caves 3299 | -5/Upper Caves | Encountered a Warlord checkpoint 3368 | -5/Upper Caves | Build established: Scientist-Ninja 3435 | -5/Upper Caves | Discovered new exit (range 3) 3436 | -5/Upper Caves | Identified exit to Upper Caves 3436 | -5/Upper Caves | Entered another Upper Caves area 3492 | -5/Upper Caves | Identified exit to Factory 3531 | -5/Upper Caves | Discovered new exit (range 6) 3533 | -5/Upper Caves | Identified exit to Zhirov 3576 | -5/Upper Caves | Entered Zhirov 3576 | -5/Zhirov | Discovered new exit (range 3) 3577 | -5/Zhirov | Identified exit to Proximity Caves 3584 | -5/Zhirov | Met Zhirov 3592 | -5/Zhirov | Learned location of Quarantine (-2) 3592 | -5/Zhirov | Learned location of Testing (-3) 3592 | -5/Zhirov | Learned location of Command (-1) 3598 | -5/Zhirov | Zhirov requested help retrieving the SGEMP Prototype 3605 | -5/Zhirov | Found Alien Artifact 3605 | -5/Zhirov | Identified Integrated Reactor 3605 | -5/Zhirov | Installed Integrated Reactor, increased core energy generation (+10) 3633 | -5/Zhirov | Found Alien Artifact 3649 | -5/Zhirov | Entered Proximity Caves 3839 | -4/Proximity Caves | Learned location of Armory (-3) 3904 | -4/Proximity Caves | Discovered exit to Factory (range 10) 3941 | -4/Proximity Caves | Spotted B-86 Titan 3972 | -4/Proximity Caves | Entered Factory 3972 | -4/Factory | Evolved 2 slots: Utility x2 4279 | -4/Factory | Build established: Hacker-Ninja 4318 | -4/Factory | Discovered new exit (range 12) 4322 | -4/Factory | Identified exit to Upper Caves 4349 | -4/Factory | Identified exit to Research 4383 | -4/Factory | Entered Upper Caves 4394 | -4/Upper Caves | A Derelict revealed a hidden shortcut to "reach the base" 4395 | -4/Upper Caves | Identified exit to Warlord 4395 | -4/Upper Caves | Entered Warlord 4550 | -4/Warlord | Learned Research repair station intel 4550 | -4/Warlord | Learned Research scanalyzer intel 4550 | -4/Warlord | Learned 4 Access zone layouts 4551 | -4/Warlord | Learned Research stockpile data 4573 | -4/Warlord | Visited the Vortex Lab 4587 | -4/Warlord | Warlord's base attacked by MAIN.C 4612 | -4/Warlord | Build established: Infiltrator-Ninja 4621 | -4/Warlord | Met Warlord 4648 | -4/Warlord | Opened side exit 4656 | -4/Warlord | Discovered new exit (range 9) 4659 | -4/Warlord | Identified exit to Proximity Caves 4659 | -4/Warlord | Entered Proximity Caves 4689 | -3/Proximity Caves | Found Alien Artifact 5341 | -3/Proximity Caves | Discovered exit to Research (range 3) 5361 | -3/Proximity Caves | Entered Research 5361 | -3/Research | Evolved 2 slots: Utility x2 5362 | -3/Research | Identified exit to Armory 5364 | -3/Research | Loaded intel: 4 repair station locations 5365 | -3/Research | Loaded intel: 6 scanalyzer locations 5460 | -3/Research | Identified Transdimensional Reconstructor 5460 | -3/Research | Identified Dimensional Node Initializer 5565 | -3/Research | Discovered new exit (range 24) 5652 | -3/Research | Entered Armory 5653 | -3/Armory | Met VL-GR5, who suggested a friendly competition 5659 | -3/Armory | Found Prototype Device 5659 | -3/Armory | Identified Exp. ECM Suite 5660 | -3/Armory | Found Exp. ECM Suite 5895 | -3/Armory | Lost the competition with VL-GR5 5904 | -3/Armory | Lost 3 parts (1n1u1w) 5958 | -3/Armory | Discovered new exit (range 18) 5985 | -3/Armory | Found Prototype Device 5985 | -3/Armory | Identified Adv. Particle Accelerator 6032 | -3/Armory | Identified exit to Research 6035 | -3/Armory | Initialized slip node 6147 | -3/Armory | Spotted Armor Guard 6147 | -3/Armory | Spotted Armor Guard 6151 | -3/Armory | Discovered exit to Research (range 15) 6186 | -3/Armory | Warped through subspace to slip node 6186 | -3/Armory | Discovered new exit (range 1) 6186 | -3/Armory | Identified exit to Lab 6203 | -3/Armory | Entered Lab 6205 | -3/Lab | Discovered exit to Research (range 9) 6210 | -3/Lab | Unable to decrypt terminal 6210 | -3/Lab | Opened the door to a hidden lab 6211 | -3/Lab | Gained access to the hidden lab's interior 6211 | -3/Lab | Detected by scanners 6213 | -3/Lab | Unable to decrypt terminal 6218 | -3/Lab | Found Alien Artifact 6220 | -3/Lab | Confronted by A5 6224 | -3/Lab | Found Transdimensional Reconstructor 6224 | -3/Lab | Warped through subspace 6229 | -3/Lab | Found Prototype Special Weapon 6229 | -3/Lab | Identified Gui. Remote Datajack 6311 | -3/Lab | Identified Core Reset Matrix 6311 | -3/Lab | Used Core Reset Matrix 6315 | -3/Lab | Sensed 2 artifacts in vicinity 6318 | -3/Lab | Discovered exit to Research (range 13) 6380 | -3/Lab | Found Prototype Protection 6380 | -3/Lab | Identified Hvy. Regenerative Plating 6383 | -3/Lab | Found Prototype Hackware 6383 | -3/Lab | Identified Deep Network Scanner 6480 | -3/Lab | Found Core Expander 6480 | -3/Lab | Installed Core Expander, added new Power slot 6483 | -3/Lab | Found Integrated Dissipator 6483 | -3/Lab | Installed Integrated Dissipator, increased core heat dissipation (+20) 6490 | -3/Lab | Unable to decrypt terminal 6536 | -3/Lab | Unable to decrypt terminal 6542 | -3/Lab | Found Prototype Energy Gun 6542 | -3/Lab | Identified Tachyon Dispersion Ray 6546 | -3/Lab | Found Prototype Energy Cannon 6569 | -3/Lab | Entered Research 6569 | -2/Research | Warlord forces began assault on 0b10 6569 | -2/Research | Evolved 2 slots: Utility x2 6572 | -2/Research | Identified Potential Cannon 6588 | -2/Research | Spotted B-90 Cyclops 6679 | -2/Research | Research machine network offline 6903 | -2/Research | Build established: Hacker-Ninja 6904 | -2/Research | Borebot progress halted 6949 | -2/Research | Spotted Tracker 6950 | -2/Research | Spotted Tracker 7001 | -2/Research | Spotted Combat Programmer 7016 | -2/Research | Borebot progress halted 7027 | -2/Research | Core integrity fell below 50% 7036 | -2/Research | Emitted hypermatrix ping 7038 | -2/Research | Met up with Warlord 7038 | -2/Research | Spotted Executioner 7039 | -2/Research | Spotted Executioner 7039 | -2/Research | Discovered new exit (range 20) 7041 | -2/Research | Assembled emerged from beneath the floor 7042 | -2/Research | Warlord destroyed during the assault 7042 | -2/Research | Lost 14 parts (3p5n4u2w) 7044 | -2/Research | Destroyed Tracker 7044 | -2/Research | System corruption reached 10% 7044 | -2/Research | System corruption reached 30% 7056 | -2/Research | Identified exit to Quarantine 7064 | -2/Research | Met DD-05H 7068 | -2/Research | Assembled emerged from beneath the floor 7076 | -2/Research | Lost 9 allies 7130 | -2/Research | Crushed by falling debris 7130 | -2/Research | Core integrity fell below 20% 7183 | -2/Research | Lost 3 allies 7213 | -2/Research | Spotted Tracker 7213 | -2/Research | Spotted Tracker 7214 | -2/Research | Spotted Executioner 7223 | -2/Research | Spotted Combat Programmer 7230 | -2/Research | Destroyed by H-88 Terminator with Heavy Machine Gun Last Messages --------------- 07217_ Imp. Linear Gravjet temporarily disabled. 07217_ System corrupted: KE Penetrator jammed. 07217_ Cmb. Linear Gravjet+ temporarily disabled. 07219_ Xenon Bombardment Thruster destroyed. 07219_ Cmb. Linear Gravjet+ temporarily disabled. 07220_ Dropped Lgt. Quantum Reactor. 07220_ Dropped Hvy. Machine Gun. 07221_ Dropped Backup Plating VII. 07221_ Dropped KE Penetrator. 07222_ Combat Programmer resets Tracker, system corruption cleaned. 07224_ Xenon Bombardment Thruster destroyed. 07224_ Imp. Linear Gravjet destroyed. 07226_ Combat Programmer resets Tracker, system corruption cleaned. 07226_ Adv. Datajack destroyed. 07229_ Penetrated by EMDS Slug. 07229_ Penetrated by Slug. Map ----- +----------------------------------------------------+ | ????"?"???????????+ ??????????????????????????? | | ??????????????????# #???????????????? ?????? | | ??????????????????# #???????????????? #????? | | ????????????#?????# #???????????????? ###??? | | ?????????# ????# #???????????#/#?? ??? | | ?????????# ???# ##?????????? ?? ???? | | ?????????? ???# ## ????????? ?? ???? | | ??????????? ??+ ## ????????? # ????? | | ????????????! !??# ##/########? " "?#### | | ????????????? ?# # #? " # ! | | ?????????????? ?# # #? # # | | ??! ?????????? !=# # #?? # %# ! | | ??= #??????????==# #""" #?? # % # | | ?" #######?##??#" #""" #???! # % =# | | ?" # * ?! ??# #""" #??? | / | | "" #? ? ?# # #???? % | | "" # """ """ ?# # ! ] #???? # | | " # """ """ # ######/######### | | " # """ "" # ##?? | | % # =[%%% / ## #?? | | " ![! *#! h ! # #### | | %"? """ "" =/% % | | #? """ """ !## ###;##h;######## =% | | #??""" """ ## # #?## #% = | | #? ## # ! #?## = = # | | # ?? ## # @ #?# #| # | | !!###########""## # = #?### # | | !!#???# # # #??# | | ##### # # #??### | | # # # # #???# # | | # # ! # # !#??## % ## | | # # #""/"#???# s #??# # ## | | % ###### ; = #??# %# | | # # ##+"" ; #?# # ! # | | ## # s# #?### | | #### !# [ ####/#########?## * | | ???## "" # #### #??? #??# % | | ????# "" !# p#? #??## # | | ##### "" # ! #???# ## # # | | ! # Y" ! / ! #??##### # # | | #= "" # [*[ # #??# [ | | "" !# "" # # ! #??# | | "" # [ "" [ ###### #?######??# | | "" # ## ! #???##E########### | | "" # ! ## ! "##? / / | | ######## # # | #?##### | | #??????## # #?????##### # | | [ #???????#### ### #?????????# | | ######?####### ## ## # ######?????????# | | #?# # #????????????## | +----------------------------------------------------+ Best States ------------- Heat Dissipation 69 Energy Generation 74 Energy Capacity 570 Matter Stores 300 Matter Capacity 300 Sight Range 22 Robot Scan Range 18 Terrain Scan Range 24 Terrain Scan Density 210 ECM Strength 3 Jamming Range 14 Cloak Strength 3 Power Amplification 30 Corruption Block 15 Armor Coverage 600 Evasion (%) 66 Targeting Accuracy 8 Core Analysis 6 Armor Integrity Analysis 40 Offensive Hacking 25 Defensive Hacking 28 Item Schematics ----------------- None Robot Schematics ------------------ None Fabricated ------------ Nothing Repaired ---------- Gravmag System | 13% | -5/Factory Studied --------- Cmb. Linear Gravjet | -2/Research | Hacked Imp. Deuterium Engine | -2/Research | Hacked Alien Tech Used ----------------- Integrated Reactor Dimensional Node Initializer Transdimensional Reconstructor Core Reset Matrix Core Expander Integrated Dissipator Achievements -------------- Alien Roots Anyone Home? Coming In Hot Z1$+NX3F=JRE3_ZNQR Challenges ------------ None Game ------ Seed FlightCoordinationTube Manual? 0 Play Time 03:09:44 Cumulative 133.1 hours Start 2026.07.01 @ 19:21:06 End 2026.07.02 @ 00:44:54 Sessions 3 Manual Loads 0 Difficulty Rogue Special Mode None Game No. 79 Rogue 79 Adventurer 0 Explorer 0 Win Type - Total 2 Types 2/0/0/0/0/0/0/0/0/0 Lore% 64 Gallery% 56 Achievement% 49 Wizard Run 0 Options --------- Layout 1 ASCII 0 Keyboard 0 Movement Numpad Keybinds 0 Fullscreen 1 Font 24/Smallcaps Map View 50x35 Zoom Use 0% Tactical HUD 1 Map Filters NONE Filters NONE Steam 1 RUN: f7e654ae-f885-4c5b-a69a-1805dd7822b7